{"text_format":"1","workbook":"xlsx","n_sheets":1,"sheets":["Coal Services"],"not_rendered":{"charts":0,"images":1,"macros":1,"external_links":0,"defined_names":3,"comments":0,"pivot_tables":0},"unopened":[],"bounds":{"document_bytes":16777216,"sheet_cells":100000,"rows_first":2000,"rows_last":500,"rows_between":2000,"halvings":0,"cell_chars":16384,"cell_head_chars":4096},"cells_cut":0,"cells_raw":0,"read":"whole","date_system":"1900"}

{"sheet":"Coal Services","index":0,"n_rows":66,"n_cols":30,"rows_kept":66,"cut":false,"hidden":false,"merged":[[4,1,4,21],[10,7,10,21],[36,14,36,16],[12,11,12,14],[34,19,34,21],[26,15,26,21],[24,15,24,21],[22,15,22,21],[30,15,30,21],[14,7,14,21],[22,7,22,12],[6,7,6,21],[8,7,8,21],[12,7,12,9],[12,19,12,21],[16,7,16,15],[50,19,50,20],[30,7,30,12],[48,19,48,20],[46,19,46,20],[42,16,42,21],[38,7,38,8],[38,19,38,21],[18,7,18,12],[20,15,20,21],[50,12,50,13],[48,12,48,13],[46,12,46,13],[20,7,20,12],[26,7,26,12],[24,7,24,12],[64,8,64,10],[64,2,64,5],[32,7,32,21],[36,7,36,9],[46,5,46,6],[48,5,48,6],[50,5,50,6],[61,15,64,21],[40,7,40,10],[52,5,52,6],[42,7,42,12],[40,20,40,21],[52,19,52,20],[55,1,59,16],[55,17,59,21],[40,14,40,16],[38,13,38,14],[52,12,52,13],[34,7,34,14],[28,7,28,12]]}
[null,null,null,null,null,"Coal Services a.s.",null,null,null,null,null,null,null,null,null,null,null,null,null,null,null,null,null,null,"seznam","A","Kč",{"$f":"VLOOKUP(H39,Y3:AA23,3,0)","v":{"$error":"#N/A"}},{"$f":"VLOOKUP(N39,Y3:AA23,3,0)","v":{"$error":"#N/A"}},{"$f":"IF(ISERROR(AC1),AB1,AB1-AC1)","v":{"$error":"#N/A"}}]
[null,null,null,null,null,"V. Řezáče 315, 434 67 Most; Krajský soud v Ústí nad Labem, oddíl B, vložka 2136",null,null,null,null,null,null,null,null,null,null,null,null,null,null,null,null,null,null," ",null,null,{"$f":"VLOOKUP(AB3,AC2:AD4,2,0)","v":"připojení"},1,"připojení"]
[null,null,null,null,null,"IČO: 28727932, DIČ: CZ699003245; bankovní spojení: ČSOB, a.s., 117488783/0300",null,null,null,null,null,null,null,null,null,null,null,null,null,null,null,null,null,null,"1 x 10",{"$f":"MID(Y3,5,3)","v":"10"},{"$f":"Z3*200","v":2000},1,2,"sdružená"]
[null,null,null,null,null,null,null,null,null,null,null,null,null,null,null,null,null,null,null,null,null,null,null,null,"1 x 13","13",{"$f":"Z4*200","v":2600},null,3,"distribuce"]
[null,"Žádost o připojení odběrného elektrického zařízení\nk distribuční soustavě",null,null,null,null,null,null,null,null,null,null,null,null,null,null,null,null,null,null,null,null,null,null,"1 x 16","16",{"$f":"Z5*200","v":3200},1,1,"obchodní firma"]
[null,null,null,null,null,null,null,null,null,null,null,null,null,null,null,null,null,null,null,null,null,null,null,null,"1 x 20","20",{"$f":"Z6*200","v":4000},null,2,"OSVČ"]
[null,null,null,null,null,null,"obchodní firma:",null,null,null,null,null,null,null,null,null,null,null,null,null,null,null,null,null,"1 x 25","25",{"$f":"Z7*500","v":12500},null,3,"fyzická osoba"]
[null,null,null,null,null,null,null,null,null,null,null,null,null,null,null,null,null,null,null,null,null,null,null,null,"3 x 10","10",5000,null,null,"C 01d"]
[null,null,null,null,null,null,"sídlo:",null,null,null,null,null,null,null,null,null,null,null,null,null,null,null,null,null,"3 x 16","16",8000,null,null,"C 02d"]
[null,null,null,null,null,null,null,null,null,null,null,null,null,null,null,null,null,null,null,null,null,null,null,null,"3 x 20","20",10000,null,null,"C 03d"]
[null,null,null,null,null,null,"zasílací adresa:",{"$f":"IF(H9=\"\",\"\",H9)","v":""},null,null,null,null,null,null,null,null,null,null,null,null,null,null,null,null,"3 x 25","25",12500,null,null,"C 25d"]
[null,null,null,null,null,null,null,null,null,null,null,null,null,null,null,null,null,null,null,null,null,null,null,null,"3 x 32","32",16000,null,null,"C 26d"]
[null,null,null,null,null,null,"IČO:",null,null,null,"DIČ:",{"$f":"CONCATENATE(\"CZ\",H13)","v":"CZ"},null,null,null,null,null,null,"datová schránka:",null,null,null,null,null,"3 x 40","40",20000,null,null,"C 27d"]
[null,null,null,null,null,null,null,null,null,null,null,null,null,null,null,null,null,null,null,null,null,null,null,null,"3 x 50","50",25000,null,null,"C 35d"]
[null,null,null,null,null,null,"spisová značka OR:",null,null,null,null,null,null,null,null,null,null,null,null,null,null,null,null,null,"3 x 63","63",31500,null,null,"C 45d"]
[null,null,null,null,null,null,null,null,null,null,null,null,null,null,null,null,null,null,null,null,null,null,null,null,"3 x 80","80",40000,null,null,"C 46d"]
[null,null,null,null,null,null,"banka, bankovní spojení:",null,null,null,null,null,null,null,null,null,null,null,null,null,null,null,null,null,"3 x 100","100",50000,null,null,"C 55d"]
[null,null,null,null,null,null,null,null,null,null,null,null,null,null,null,null,null,null,null,null,null,null,null,null,"3 x 125","125",62500,null,null,"C 56d"]
[null,null,null,null,null,null,"číslo smlouvy žadatele:",null,null,null,null,null,null,null,null,null,null,null,null,null,null,null,null,null,"3 x 160","160",80000,null,null,"C 60d"]
[null,null,null,null,null,null,null,null,null,null,null,null,null,null,null,null,null,null,null,null,null,null,null,null,"3 x 200","200",100000,null,null,"C 62d"]
[null,null,null,null,null,null,"osoba podepisující smlouvu:",null,null,null,null,null,null,null,"funkce:",null,null,null,null,null,null,null,null,null,"3 x 250","250",125000,{"$f":"VLOOKUP(AB22,AC21:AD23,2,0)","v":"NN"},1,"VN"]
[null,null,null,null,null,null,null,null,null,null,null,null,null,null,null,null,null,null,null,null,null,null,null,null,"3 x 315","315",157500,2,2,"NN"]
[null,null,null,null,null,null,"telefon: ",null,null,null,null,null,null,null,"e-mail:",null,null,null,null,null,null,null,null,null,"3 x 400","400",200000]
[]
[null,null,null,null,null,null,"osoba podepisující smlouvu*):",null,null,null,null,null,null,null,"funkce:",null,null,null,null,null,null,null,null,null,null,null,null,{"$f":"IF(V37=\"VN\",(H39/1000)*800000,0)","v":0},{"$f":"IF(V37=\"VN\",(N39/1000)*800000,0)","v":0},{"$f":"IF(AB25>AC25,AB25-AC25,0)","v":0}]
[]
[null,null,null,null,null,null,"telefon:",null,null,null,null,null,null,null,"e-mail:"]
[]
[null,null,null,null,null,null,"osoba technické zastoupení:"]
[]
[null,null,null,null,null,null,"telefon:",null,null,null,null,null,null,null,"e-mail:"]
[]
[null,null,null,null,null,null,"adresa odběrného místa:"]
[]
[null,null,null,null,null,null,"objekt:",null,null,null,null,null,null,null,null,null,null,null,"typ odběru: "]
[]
[null,null,null,null,null,null,"termín připojení:",{"$f":"IF(T35<>\"\",EOMONTH(TODAY(),0)+1,\"\")","v":""},null,null,null,null,null,"do termínu:",{"$f":"IF(T35=\"krátkodobý\",H37+365,IF(T35=\"dlouhodobý\",\"neurčito\",\"\"))","v":""},null,null,null,null,null,"napěťová hladina:",{"$f":"AB21","v":"NN"}]
[]
[null,null,null,null,null,null,"hodnota hlavního jističe:",null,null,"A",null,null,"stávající:",null,null,"A",null,null,"měrný podíl:",{"$f":"IF(T35=\"krátkodobý\",0,IF(V37=\"vn\",AD25,IF(ISERROR(AD1),\"\",IF(AD1<=0,0,AD1))))","v":""}]
[]
[null,null,null,null,null,null,"kvalita dodávky:",null,null,null,null,null,null,null,null,null,null,null,null,"převod MTP:"]
[]
[null,null,null,null,null,null,"umístění elektroměru:",null,null,null,null,null,null,null,null,"přístupnost:"]
[]
[null,"instalované spotřebiče:"]
[]
[null,"ohřev TUV - bojlery",null,null,null,null,null,"kW","elektromobilita",null,null,null,null,null,"kW","ostatní spotřebiče",null,null,null,null,null,"kW"]
[]
[null,"elektrické vytápění",null,null,null,null,null,"kW","motory",null,null,null,null,null,"kW","výrobna",null,null,null,null,null,"kW"]
[]
[null,"tepelná čerpadla",null,null,null,null,null,"kW","osvětlení",null,null,null,null,null,"kW","neměřený odběr",null,null,null,null,null,"kW"]
[]
[null,"klimatizace",null,null,null,null,null,"kW","frekvenční měniče",null,null,null,null,null,"kW","celkem",null,null,null,{"$f":"IF(SUM(F47:G53,M47:N53,T47:U51)=0,\"\",SUM(F47:G53,M47:N53,T47:U51))","v":""},null,"kW"]
[]
[]
[null,"souhlas vlastníka nemovitosti:\nVlastník nemovitosti souhlasí se stavbou, rozšířením nebo změnou elektrické přípojky\nči rozvodného zařízení NN na dotčené nemovitosti. Souhlasem bere na vědomí, že zřízením\n(rozšířením) zařízení distribuční soustavy na dotčené nemovitosti vzniká provozovateli\ndistribuční soustavy podle § 25, zákona č. 458/2000 Sb. právo vstupovat a vjíždět na cizí\nnemovitosti v souvislosti se zřizováním a provozováním zařízení distribuční soustavy.",null,null,null,null,null,null,null,null,null,null,null,null,null,null,null,"podpis vlastníka nemovitosti"]
[]
[]
[]
[]
[]
[null,"přijato"]
[null,"dne:",null,null,null,null,null,null,null,"podpis:"]
[null,"Prohlašuji, že všechny údaje v této žádosti jsou správné a pravdivé."]
[null,"v",null,null,null,null,null,"dne"]
[null,"*) v případě dvou podepisujících osob",null,null,null,null,null,null,null,null,null,null,null,null,null,null,"podpisy oprávněných osob"]